bitfinex/quotes_ETHUSD_20250403
["timestamp","ask_amount","ask_price","bid_price","bid_amount"]
[1743685342165,5.68584,1758.8,1758.4,7.20128]
[1743685342359,5.6863,1758.7,1758.3,5.6873]
[1743685342590,5.68692,1758.5,1758.1,5.73782]
[1743685342898,13.46206,1758.7,1758.1,0.785802]
[1743685343099,13.46206,1758.7,1758.3,5.68715]
[1743685343296,5.68663,1758.6,1758.2,5.6875]
[1743685343496,5.68687,1758.5,1758.1,5.73784]
[1743685343683,5.68687,1758.5,1758.1,11.42566]
[1743685343997,13.46202,1758.7,1758.1,1.354586]
[1743685344198,19.14828,1758.7,1758.3,5.68702]
[1743685344368,13.46202,1758.7,1758.4,5.68697]
[1743685344871,7.774,1758.9,1758.1,7.042526]
[1743685345118,7.774,1758.9,1758.7,5.68581]
[1743685345288,7.774,1758.9,1758.7,11.37165]
[1743685345483,7.774,1758.9,1758.7,12.508815]
[1743685345703,5.6844,1759.2,1758.9,5.68522]
[1743685346087,13.45814,1759.3,1758.9,11.37045]
[1743685346286,7.774,1759.3,1758.7,6.823065]
[1743685346486,7.774,1759.3,1758.3,11.37426]
[1743685346487,5.68623,1758.7,1758.3,11.37426]
[1743685346690,7.20327,1758.7,1758.1,0.05]
[1743685346886,12.88954,1758.7,1758.3,11.37429]
[1743685347069,7.774,1758.8,1758.2,5.68763]
[1743685347396,0.55,1759.2,1758.2,5.68763]
[1743685347397,5.68477,1759.1,1758.7,5.68585]
[1743685347568,7.774,1759.2,1758.6,11.37255]
[1743685347904,13.4585,1759.2,1758.8,5.68554]
[1743685348067,5.68459,1759.2,1758.8,7.33129]
[1743685348267,5.68459,1759.2,1758.8,13.01684]
[1743685348580,7.30278,1759.3,1758.9,5.68507]
[1743685348780,5.68463,1759.2,1758.8,7.33138]
[1743685348983,5.68556,1758.9,1758.5,11.37311]
[1743685349177,11.3703,1759.0,1758.6,5.68619]
[1743685349415,0.55,1759.1,1758.4,7.33267]
[1743685349701,5.68642,1758.6,1758.3,5.68729]
[1743685350082,5.68607,1758.7,1758.3,5.68717]
[1743685350401,7.772,1758.8,1758.3,0.568717]
[1743685350567,7.772,1758.8,1758.5,5.68655]
[1743685350773,13.45789,1758.8,1758.4,5.68695]
[1743685350973,19.14389,1758.8,1758.4,5.68695]
[1743685351173,7.772,1758.8,1758.5,5.68655]
[1743685351374,7.772,1758.8,1758.5,11.3731]
[1743685351580,7.772,1758.8,1758.6,5.68632]
[1743685352107,7.772,1758.8,1758.6,6.823517]
[1743685352416,7.772,1758.8,1758.5,5.68653]
[1743685352721,5.68647,1758.6,1758.3,7.30618]
[1743685352923,5.68647,1758.6,1758.3,5.68718]
[1743685353284,7.772,1758.8,1758.1,5.73788]
[1743685354399,5.68689,1758.5,1758.1,11.42569]
[1743685354922,5.68639,1758.6,1758.2,5.6875]
[1743685355137,5.68639,1758.6,1758.2,11.37499]
[1743685355481,11.37289,1758.6,1758.2,11.37499]
[1743685355680,5.68639,1758.6,1758.2,11.37501]
[1743685355881,5.68707,1758.4,1758.1,5.73785]
[1743685356080,5.68683,1758.5,1758.1,5.73781]
[1743685356280,5.68683,1758.5,1758.1,11.42566]
[1743685356521,11.37365,1758.5,1758.1,5.73781]
[1743685356720,5.68743,1758.3,1758.1,0.05]
[1743685356927,1.6495,1758.2,1758.1,0.05]
[1743685357236,18.65513,1758.2,1758.1,0.05]
[1743685358375,5.69048,1757.4,1757.1,1.6173]
[1743685358586,5.69043,1757.4,1757.1,0.05]
[1743685358899,5.69065,1757.3,1757.1,0.05]
[1743685359104,5.69087,1757.2,1757.1,0.05]
[1743685359494,14.97248,1757.6,1757.1,0.05]
[1743685359495,9.8329,1757.6,1757.1,0.05]
[1743685359692,20.6624,1757.6,1757.2,5.69074]
[1743685360022,5.68991,1757.5,1757.2,5.69074]
[1743685360222,14.9725,1757.6,1757.2,5.69074]
[1743685360427,14.9725,1757.6,1757.2,5.6907]
[1743685360730,5.69034,1757.4,1757.1,0.05]
[1743685361227,14.97248,1757.6,1757.2,5.69071]
[1743685361399,14.97248,1757.6,1757.1,5.74114]
[1743685361400,9.2829,1757.6,1757.1,0.05]
[1743685361604,5.69047,1757.4,1757.1,0.05]
[1743685361799,11.38096,1757.4,1757.1,0.05]
[1743685362038,5.69047,1757.4,1757.1,0.05]
[1743685362195,11.3809,1757.4,1757.1,0.05]
[1743685362395,5.69087,1757.2,1757.1,0.05]
[1743685362602,5.69067,1757.3,1757.1,0.05]
[1743685362805,13.4561,1757.8,1757.4,5.69004]
[1743685363102,13.4561,1757.8,1757.5,5.68958]
[1743685363103,7.767,1757.8,1757.5,5.68958]
[1743685363827,13.45593,1757.8,1757.4,5.69021]
[1743685364134,7.767,1757.8,1757.7,5.68925]
[1743685364441,5.68799,1758.1,1757.7,7.19923]
[1743685364644,9.3498,1758.2,1757.7,1.5101]
[1743685364851,7.767,1758.2,1758.1,5.68795]
[1743685364997,7.767,1758.2,1758.0,5.68801]
[1743685365204,7.767,1758.2,1758.1,5.68795]
[1743685365925,40.932,1758.5,1758.1,2.723096]
[1743685366152,46.61869,1758.5,1758.1,5.68793]
[1743685366300,5.6876,1758.3,1757.9,5.68849]
[1743685366516,5.68766,1758.2,1757.9,5.68849]
[1743685366818,40.932,1758.5,1757.8,1.5855]
[1743685366819,46.6188,1758.5,1757.8,1.5855]
[1743685367052,46.6188,1758.5,1758.2,5.68758]
[1743685367053,46.61868,1758.5,1758.2,5.68758]
[1743685367216,5.68751,1758.3,1757.9,5.6886]
[1743685367557,40.932,1758.5,1758.1,5.68783]
[1743685367847,40.932,1758.5,1758.1,5.68785]
[1743685368058,5.68702,1758.4,1758.1,5.68766]
[1743685368226,5.68702,1758.4,1758.0,11.37635]
[1743685368423,5.68702,1758.4,1758.1,5.68794]
[1743685368733,40.932,1758.5,1758.2,5.68742]
[1743685368921,5.68602,1758.7,1758.3,5.68707]
[1743685369128,13.44973,1758.8,1758.4,5.6868]
[1743685369524,7.764,1758.8,1758.2,1.6641]
[1743685369742,7.764,1758.8,1758.1,5.68775]
[1743685369743,11.37376,1758.5,1758.1,5.68775]
[1743685370055,5.6864,1758.6,1758.2,5.68742]
[1743685370216,11.37227,1758.7,1758.0,5.68828]
[1743685370417,11.37229,1758.7,1758.3,5.68712]
[1743685370618,11.37228,1758.7,1758.3,5.68712]
[1743685370831,5.68658,1758.6,1758.2,11.37503]
[1743685371032,11.37227,1758.7,1758.3,5.6872]
[1743685371234,5.68678,1758.5,1758.1,11.3757]
[1743685371436,1.6395,1758.5,1757.9,7.35253]
[1743685371666,5.68763,1758.2,1757.9,5.68843]
[1743685371952,7.32616,1758.5,1757.7,5.68919]
[1743685371953,5.68828,1758.0,1757.7,5.68919]
[1743685372151,13.44909,1758.1,1757.7,5.6891]
[1743685372455,5.68924,1757.8,1757.3,7.20806]
[1743685372757,5.69,1757.5,1757.2,5.69067]
[1743685372953,5.69037,1757.4,1757.1,0.05]
[1743685373325,5.69037,1757.4,1757.1,5.74119]
[1743685373517,5.69037,1757.4,1757.1,0.05]
[1743685373718,5.69087,1757.2,1757.1,0.05]
[1743685373951,5.69033,1757.4,1757.1,0.05]
[1743685374152,9.4136,1757.5,1757.1,0.05]
[1743685374355,5.69072,1757.3,1757.1,0.05]
[1743685374551,5.69087,1757.2,1757.1,0.05]
[1743685375421,6.24087,1757.2,1757.1,0.05]
[1743685375647,7.85187,1757.2,1757.1,0.05]
[1743685376366,5.69072,1757.3,1757.1,0.05]
[1743685376724,52.33575,1757.4,1757.1,0.05]
[1743685377047,7.759,1757.3,1757.1,0.05]
[1743685377755,40.955,1757.4,1757.2,5.69076]
[1743685378057,7.759,1757.5,1757.3,5.69053]
[1743685378228,7.759,1757.5,1757.1,11.43218]
[1743685378229,13.44903,1757.5,1757.1,11.43218]
[1743685378433,13.44903,1757.5,1757.2,5.69086]
[1743685378653,7.759,1757.5,1757.2,5.69086]
[1743685378953,7.759,1757.5,1757.3,5.69043]
[1743685379122,48.15781,1758.1,1757.6,5.68951]
[1743685379326,7.759,1757.8,1757.4,5.69006]
[1743685379526,13.44796,1757.8,1757.5,5.68985]
[1743685379826,7.759,1757.8,1757.5,11.37957]
[1743685380028,13.4481,1757.8,1757.4,5.69011]
[1743685380222,7.759,1757.8,1757.3,1.6188]
[1743685380434,7.759,1757.8,1757.7,5.68925]
[1743685380653,5.68873,1757.9,1757.5,5.6897]
[1743685380866,5.68892,1757.8,1757.1,0.05]
[1743685381154,5.69041,1757.4,1757.1,5.74116]
[1743685381359,7.757,1757.7,1757.4,5.69005]
[1743685381663,7.757,1757.7,1757.4,11.3801]
[1743685381822,7.757,1757.7,1757.6,5.68957]
[1743685382230,7.757,1757.7,1757.5,7.21216]
[1743685382231,48.711,1758.1,1757.8,5.68878]
[1743685382435,48.711,1758.1,1757.7,5.68922]
[1743685382681,54.39925,1758.1,1757.7,5.68922]
[1743685382952,54.39925,1758.1,1757.7,5.68908]
[1743685383155,48.711,1758.1,1757.8,5.68873]
[1743685383525,48.711,1758.1,1757.9,5.68849]
[1743685383771,5.68646,1758.6,1758.0,1.6456]
[1743685384066,13.44116,1758.7,1758.4,5.68698]
[1743685384250,7.755,1758.7,1758.4,5.68685]
[1743685384429,7.755,1758.7,1758.5,5.68665]
[1743685384633,7.755,1758.7,1758.0,1.6456]
[1743685384634,13.44113,1758.7,1758.4,5.68692]
[1743685385254,7.755,1758.7,1758.4,11.37384]
[1743685385459,7.755,1758.7,1758.5,5.6865]
[1743685385659,40.959,1758.8,1758.6,5.68617]
[1743685385829,40.959,1758.8,1758.6,11.3724]
[1743685386225,40.959,1758.8,1758.7,5.68601]
[1743685386565,5.68409,1759.3,1758.9,5.68515]
[1743685386743,13.43709,1759.3,1758.9,5.68515]
[1743685386948,13.43709,1759.3,1759.0,5.68501]
[1743685387135,13.43709,1759.3,1758.9,6.822229]
[1743685387648,42.5943,1759.5,1759.1,5.68456]
[1743685387649,61.71339,1759.5,1759.1,5.68456]
[1743685387830,7.28021,1759.8,1759.4,5.68347]
[1743685388028,7.28021,1759.8,1759.5,5.68331]
[1743685388029,1.5976,1759.8,1759.5,5.68331]
[1743685388362,1.5976,1759.8,1759.4,11.36728]
[1743685388363,5.68258,1759.8,1759.4,11.36728]
[1743685388565,5.73218,1759.9,1759.5,11.36669]
[1743685388746,5.73218,1759.9,1759.4,6.820458]
[1743685388959,5.68257,1759.8,1759.4,6.820288]
[1743685389273,5.68257,1759.8,1759.4,12.503848]
[1743685389473,0.05,1759.9,1759.2,5.6843]
[1743685389786,0.05,1759.9,1759.0,1.5935]
[1743685389939,5.73241,1759.9,1759.5,5.68337]
[1743685390136,5.68256,1759.8,1759.5,7.2446]
[1743685390337,0.05,1759.9,1759.7,5.68264]
[1743685390571,0.05,1759.9,1758.8,1.5158]
[1743685390572,5.68528,1759.0,1758.8,1.5158]
[1743685390768,5.68343,1759.5,1758.5,7.20228]
[1743685390769,5.68538,1758.9,1758.5,7.20228]
[1743685390977,13.43283,1759.1,1758.6,5.68632]
[1743685391176,5.6851,1759.0,1758.5,7.20237]
[1743685391486,5.68571,1758.8,1758.5,1.5158]
[1743685391640,5.68608,1758.7,1758.2,7.30852]
[1743685391974,5.68475,1759.1,1758.6,5.68617]
[1743685392193,5.68602,1758.7,1758.3,11.37451]
[1743685392346,5.68602,1758.7,1758.3,5.6872]
[1743685392547,5.68648,1758.6,1758.2,2.920617]
[1743685392758,5.68539,1758.9,1758.4,5.68696]
[1743685392759,5.6858,1758.8,1758.4,5.68696]
[1743685393080,5.68501,1759.1,1758.7,5.68589]
[1743685393081,13.42884,1759.1,1758.7,5.68589]
[1743685393247,5.68565,1758.9,1758.5,0.568696]
[1743685393443,5.68583,1758.8,1758.4,5.68692]
[1743685393648,5.68583,1758.8,1758.4,5.68687]
[1743685393947,5.68583,1758.8,1758.4,5.68683]
[1743685394176,5.68583,1758.8,1758.4,11.3737]
[1743685394340,13.42887,1759.1,1758.6,5.68633]
[1743685394544,13.42887,1759.1,1758.6,6.254963]
[1743685394545,13.42805,1759.0,1758.6,6.254963]
[1743685394753,5.68542,1758.9,1758.6,0.568633]
[1743685394961,5.68584,1758.8,1758.3,5.68731]
[1743685395170,5.68542,1758.9,1758.4,5.6868]
[1743685395599,5.68542,1758.9,1758.5,5.68646]
[1743685396297,13.42808,1759.0,1758.4,5.68696]
[1743685396298,5.68588,1758.8,1758.4,5.68696]
[1743685396445,5.68588,1758.8,1758.4,11.3738]
[1743685396800,7.743,1759.0,1758.5,5.68651]
[1743685397084,5.68581,1758.8,1758.4,5.68697]
[1743685397247,5.68581,1758.8,1758.4,11.3738]
[1743685397890,5.68537,1758.9,1758.4,11.3738]
[1743685397891,5.68537,1758.9,1758.4,5.68682]
[1743685398098,7.743,1759.0,1758.6,5.68605]
[1743685398404,46.62113,1759.3,1758.9,5.68521]
[1743685398550,5.68386,1759.4,1758.8,5.68565]
[1743685398750,5.68386,1759.4,1759.0,5.68503]
[1743685399047,7.74,1759.5,1758.7,1.6462]
[1743685399248,5.68567,1758.9,1758.4,7.25631]
[1743685399561,13.4251,1759.0,1758.5,5.68644]
[1743685399875,7.74,1759.0,1758.4,7.25648]
[1743685400063,7.74,1759.0,1758.9,7.27557]
[1743685400249,13.42283,1759.4,1759.0,11.36997]
[1743685400444,5.6841,1759.3,1759.0,5.68493]
[1743685400644,5.6841,1759.3,1758.7,1.5902]
[1743685400645,0.566869,1759.3,1758.7,1.5902]
[1743685400980,5.68515,1759.0,1758.7,1.5902]
[1743685401282,5.68321,1759.6,1758.7,1.5902]
[1743685401484,7.20354,1759.7,1759.3,5.68404]
[1743685401784,13.42051,1759.8,1759.2,1.6444]
[1743685402084,7.738,1759.8,1759.6,5.68284]
[1743685402268,7.738,1759.8,1759.7,5.68278]
[1743685402470,1.5045,1761.5,1760.8,5.67923]
[1743685402652,5.67822,1761.2,1760.7,7.2059]
[1743685402846,5.72904,1760.9,1760.7,1.5265]
[1743685403063,5.72904,1760.9,1760.3,7.26232]
[1743685403064,5.67948,1760.8,1760.3,7.26232]
[1743685403258,5.67926,1760.8,1760.4,5.68031]
[1743685403465,0.05,1760.9,1760.6,5.67956]
[1743685403663,5.72905,1760.9,1760.4,11.36066]
[1743685404250,5.72905,1760.9,1760.5,5.68018]
[1743685404450,0.05,1760.9,1760.5,5.68018]
[1743685404877,0.05,1760.9,1759.8,1.6131]
[1743685405087,5.6802,1760.5,1760.0,11.36327]
[1743685405452,5.6802,1760.5,1760.0,11.3633]
[1743685405746,5.68054,1760.4,1759.9,5.68207]
[1743685406078,5.68054,1760.4,1759.9,12.661692]
[1743685406275,5.68054,1760.4,1759.9,6.979622]
[1743685406458,5.68177,1760.1,1759.6,5.68307]
[1743685406660,5.68195,1760.0,1759.6,5.68307]
[1743685406873,11.36356,1760.1,1759.6,5.68298]
[1743685407080,11.36356,1760.1,1759.5,1.6582]
[1743685407081,5.68235,1759.9,1759.5,1.6582]
[1743685407383,5.68183,1760.0,1759.5,7.34149]
[1743685407607,7.731,1760.1,1759.5,2.392349]
[1743685407881,7.731,1760.1,1759.5,1.6582]
[1743685408092,5.6831,1759.7,1759.2,7.19948]
[1743685408299,5.68252,1759.8,1759.3,5.6839]
[1743685408498,5.68304,1759.7,1759.3,5.6839]
[1743685408663,5.68304,1759.7,1759.2,12.88384]
[1743685408857,5.68304,1759.7,1759.2,14.59759218]
[1743685409166,7.731,1760.1,1759.5,5.68319]
[1743685409373,5.68187,1760.0,1759.5,5.68331]
[1743685409555,7.731,1760.1,1759.4,5.68372]
[1743685409760,5.68301,1759.7,1759.2,8.91312218]
[1743685409986,5.68249,1759.8,1759.4,5.68358]
[1743685410347,5.68249,1759.8,1759.2,7.19956]
[1743685410572,5.68434,1759.3,1758.9,1.5539]
[1743685410773,5.68434,1759.3,1758.3,5.68709]
[1743685410774,5.68407,1759.3,1758.3,7.2411]
[1743685410979,5.68588,1758.8,1758.4,6.41095]
[1743685411181,13.41388,1758.8,1758.4,12.09781]
[1743685411479,19.0998,1758.8,1758.4,6.41095]
[1743685411684,7.728,1758.8,1758.5,5.68652]
[1743685411903,5.68608,1758.7,1758.4,0.72411]
[1743685412056,13.41394,1758.8,1758.4,6.41109]
[1743685412381,13.41394,1758.8,1758.4,12.09791]
[1743685412578,7.728,1758.8,1758.5,6.896381]
[1743685412882,7.728,1758.8,1758.5,6.896301]
[1743685413083,5.68612,1758.7,1758.4,0.72411]
[1743685413288,5.68653,1758.6,1758.3,1.5539]
[1743685413505,5.68653,1758.6,1758.2,5.6876]
[1743685413789,5.68653,1758.6,1758.2,11.37504]
[1743685413952,5.68653,1758.6,1758.2,5.68744]
[1743685414152,5.68653,1758.6,1758.2,11.37487]
[1743685414566,13.41371,1758.8,1758.3,5.68718]
[1743685414764,5.6849,1759.1,1758.6,5.68629]
[1743685414987,5.68583,1758.8,1758.4,5.68698]
[1743685415152,5.68613,1758.7,1758.3,12.94903]
[1743685415490,5.68613,1758.7,1758.3,14.3581817]
[1743685416053,5.68613,1758.7,1758.3,7.0962817]
[1743685416259,5.6871,1758.4,1758.1,0.05]
[1743685419895,5.69059,1757.3,1757.1,0.05]
[1743685420061,7.724,1757.4,1757.1,5.74116]
[1743685420488,7.724,1757.4,1757.2,5.69086]
[1743685420693,7.724,1757.4,1757.1,5.74117]
[1743685420864,7.724,1757.4,1757.1,0.05]
[1743685421064,5.69065,1757.3,1757.1,0.05]
[1743685421495,7.724,1757.4,1757.1,0.05]
[1743685421675,7.724,1757.4,1757.1,5.74116]
[1743685421870,7.724,1757.4,1757.2,5.69072]
[1743685422102,7.724,1757.4,1757.2,11.38147]
[1743685422285,7.724,1757.4,1757.1,0.05]
[1743685422478,5.69055,1757.3,1757.1,0.05]
[1743685422675,5.69087,1757.2,1757.1,0.05]
[1743685427487,5.69411,1756.2,1756.1,0.05]
[1743685427687,7.19501,1756.2,1756.1,0.05]
[1743685427912,10.74501,1756.2,1756.1,1e-05]
[1743685428078,7.19501,1756.2,1756.1,1e-05]
[1743685428275,7.724,1756.3,1756.1,1e-05]
[1743685428504,5.69411,1756.2,1756.1,1e-05]
[1743685428723,7.724,1756.3,1756.1,1e-05]
[1743685429177,13.4168,1756.3,1756.1,1e-05]
[1743685429378,5.69411,1756.2,1756.1,1e-05]
[1743685430982,9.24411,1756.2,1756.1,1e-05]
[1743685431182,16.41811,1756.2,1756.1,1e-05]
[1743685431604,16.96811,1756.2,1756.1,1e-05]
[1743685431801,5.6935,1756.4,1756.1,1e-05]
[1743685432124,5.69357,1756.4,1756.1,1e-05]
[1743685432304,7.724,1756.5,1756.1,1e-05]
[1743685432479,7.29879,1756.8,1756.3,5.69374]
[1743685432685,5.69262,1756.7,1756.3,5.69363]
[1743685433313,5.69292,1756.6,1756.2,5.69399]
[1743685433612,5.69264,1756.7,1756.3,5.69359]
[1743685433918,11.38797,1756.3,1756.1,1e-05]
[1743685434114,5.69411,1756.2,1756.1,1e-05]
[1743685434505,7.724,1756.4,1756.1,1e-05]
[1743685434720,5.68991,1757.5,1756.3,5.69378]
[1743685434721,48.7546,1757.1,1756.3,5.69378]
[1743685435037,7.724,1757.0,1756.8,5.69203]
[1743685435185,1.6366,1757.4,1757.1,5.691]
[1743685435502,1.6366,1757.4,1756.8,5.69212]
[1743685435503,5.69069,1757.3,1756.9,5.69164]
[1743685436104,5.69069,1757.3,1756.9,11.38331]
[1743685436304,13.413,1757.5,1757.1,5.69095]
[1743685436506,46.66612,1757.8,1757.3,5.69047]
[1743685436708,7.723,1757.7,1757.2,1.5681]
[1743685436895,7.723,1757.7,1757.3,5.69042]
[1743685437101,5.69024,1757.4,1757.0,5.69145]
[1743685437417,5.69024,1757.4,1757.0,5.69132]
[1743685437736,11.38324,1757.0,1756.5,7.35645]
[1743685437916,13.41352,1757.0,1756.5,7.35645]
[1743685438117,13.41352,1757.0,1756.6,5.69266]
[1743685438415,13.41368,1757.0,1756.6,5.69281]
[1743685438622,13.41368,1757.0,1756.6,11.38549]
[1743685438796,7.722,1757.0,1756.4,0.569378]
[1743685438995,5.69308,1756.6,1756.2,1.5058]
[1743685439197,13.41426,1756.5,1756.1,5.69442]
[1743685445625,7.23921,1756.7,1756.3,5.69376]
[1743685445836,19.10253,1756.8,1756.4,5.69336]
[1743685446004,13.41017,1756.8,1756.5,5.69301]
[1743685446327,54.3869,1757.2,1756.8,5.69197]
[1743685446625,13.4079,1757.2,1756.8,5.69197]
[1743685446827,46.6676,1757.9,1757.2,5.69066]
[1743685447128,11.37894,1757.7,1757.3,5.69029]
[1743685447334,5.68943,1757.7,1757.3,5.69029]
[1743685447506,5.68945,1757.7,1757.3,11.38069]
[1743685447696,5.68975,1757.6,1757.2,7.26324]
[1743685447893,5.6893,1757.7,1757.3,11.3809]
[1743685448100,7.716,1757.7,1757.4,5.69003]
[1743685448310,7.716,1757.7,1757.0,5.69138]
[1743685448499,5.69079,1757.3,1756.9,7.35232]
[1743685448694,5.68997,1757.5,1757.0,5.69123]
[1743685449020,5.6905,1757.4,1757.0,11.38258]
[1743685449333,5.69042,1757.4,1757.0,5.69123]
[1743685449702,5.69148,1757.1,1756.7,5.6922]
[1743685449903,11.38296,1757.1,1756.7,5.6922]
[1743685450099,13.40569,1757.3,1756.9,5.6916]
[1743685450420,19.09643,1757.3,1756.9,5.6916]
[1743685450621,13.40569,1757.3,1757.0,5.6914]
[1743685450947,7.715,1757.3,1756.9,5.6916]
[1743685451230,5.69115,1757.2,1756.8,5.69216]
[1743685451531,5.68976,1757.6,1757.3,5.69044]
[1743685451731,7.713,1757.7,1757.4,5.6901]
[1743685451919,7.713,1757.7,1757.6,5.68957]
[1743685452119,7.713,1757.7,1757.5,5.68976]
[1743685452304,7.713,1757.7,1757.6,5.68957]
[1743685452500,1.6622,1758.1,1757.6,2.789733]
[1743685452706,13.40068,1758.2,1757.7,5.68925]
[1743685452900,7.713,1758.2,1758.0,5.68805]
[1743685453135,7.713,1758.2,1757.8,5.6888]
[1743685453329,7.713,1758.2,1757.9,5.68854]
[1743685453529,7.713,1758.2,1757.6,1.6518]
[1743685453530,7.713,1758.2,1757.7,5.68925]
[1743685453831,7.762,1758.9,1758.6,5.68619]
[1743685454048,7.762,1758.9,1758.7,5.68601]
[1743685454349,1e-05,1758.9,1758.8,5.68569]
[1743685454552,1e-05,1758.9,1758.8,7.22749]
[1743685455758,13.44216,1759.9,1759.5,5.6834]
[1743685455910,13.44216,1759.9,1759.4,5.68374]
[1743685456261,7.76,1759.9,1759.5,5.6833]
[1743685456940,13.44233,1759.9,1759.5,5.6833]
[1743685457249,0.05,1759.9,1759.8,5.68246]
[1743685458051,9.3507,1760.8,1760.4,5.68035]
[1743685458254,13.38544,1760.8,1760.3,5.68069]
[1743685458416,13.38544,1760.8,1760.4,5.68052]
[1743685458616,5.67985,1760.7,1760.3,5.68071]
[1743685458816,0.05,1760.9,1760.3,0.568071]
[1743685459052,5.6795,1760.8,1760.3,5.68082]
[1743685459247,5.72891,1760.9,1760.2,5.68117]
[1743685459459,5.72891,1760.9,1760.5,5.68004]
[1743685459825,5.67924,1760.8,1760.3,11.36118]
[1743685460053,5.67924,1760.8,1760.0,7.19984]
[1743685460054,5.72892,1760.9,1760.5,5.68019]
[1743685460237,5.67924,1760.8,1760.4,5.68051]
[1743685460441,0.05,1760.9,1760.2,5.68114]
[1743685460652,5.68013,1760.6,1760.2,5.68113]
[1743685460846,0.04254007,1760.6,1760.2,5.68116]
[1743685461153,5.6807,1760.4,1760.0,7.19989]
[1743685461355,0.04254007,1760.4,1759.8,5.68241]
[1743685461537,5.68084,1760.4,1759.9,5.68191]
[1743685461740,5.72342007,1760.3,1759.8,6.413055]
[1743685461940,5.68197,1760.0,1759.6,5.68309]
[1743685462280,5.72446007,1760.0,1759.6,5.68291]
[1743685462459,0.04254007,1760.0,1759.6,5.68291]
[1743685462658,0.04254007,1760.0,1759.7,5.68252]
[1743685462977,5.68196,1760.0,1759.6,5.683]
[1743685463144,5.68176,1760.1,1759.6,5.68299]
[1743685463342,13.92943,1760.5,1760.0,5.68171]
[1743685463546,0.04254007,1760.4,1760.1,5.68137]
[1743685463758,5.72189007,1760.8,1760.4,5.6804]
[1743685464086,0.04254007,1760.8,1760.5,5.68015]
[1743685464241,5.67926,1760.8,1760.4,5.73731906]
[1743685464445,5.67926,1760.8,1760.4,5.73719716]
[1743685464693,5.72180007,1760.8,1760.5,5.68019]
[1743685464901,7.23861,1760.9,1760.4,5.6804]
[1743685464902,0.05,1760.9,1760.6,5.67976]
[1743685465065,0.05,1760.9,1760.7,5.67953]
[1743685465280,0.05,1760.9,1760.7,5.73618263]
[1743685465459,0.05,1760.9,1760.8,5.73601624]
[1743685465677,0.05,1760.9,1760.8,6.86610786]
[1743685465984,0.05,1760.9,1760.8,6.80932162]
[1743685466168,0.05,1760.9,1760.8,6.86609878]
[1743685466887,0.05,1760.9,1760.8,6.80932162]
[1743685467059,0.05,1760.9,1760.8,5.73600927]
[1743685467262,0.05,1760.9,1760.8,5.67923]
[1743685469683,0.05,1760.9,1760.7,7.32029]
[1743685470179,0.05,1760.9,1760.7,5.7361797]
[1743685470383,0.05,1760.9,1760.7,5.7361697]
[1743685470778,0.05,1760.9,1760.5,5.68015]
[1743685470984,5.68002,1760.6,1760.2,5.68106]
[1743685471287,5.72213007,1760.7,1760.3,5.68081]
[1743685471461,15.01801,1760.8,1760.4,5.68042]
[1743685471785,20.69756,1760.8,1760.4,5.68042]
[1743685471950,7.688,1760.8,1760.7,5.67955]
[1743685472148,0.05,1760.9,1760.8,7.29103]
[1743685472354,6.17,1762.0,1760.8,6.82274992]
[1743685472355,1.68694007,1761.9,1760.8,6.82274992]
[1743685472549,0.05,1761.9,1761.8,5.67601]
[1743685473562,0.05,1761.9,1761.7,5.6762]
[1743685473879,0.05,1761.9,1761.7,5.67612]
[1743685474072,0.05,1761.9,1761.8,5.67601]
[1743685474291,0.05,1761.9,1761.4,5.67729]
[1743685474292,5.7258,1761.9,1761.3,7.28926]
[1743685474466,5.71856007,1761.8,1761.4,5.67714]
[1743685474983,5.71856007,1761.8,1761.4,11.35424]
[1743685475183,0.05,1761.9,1761.5,0.05676991]
[1743685475371,0.05,1761.9,1761.7,5.67621]
[1743685475575,0.05,1761.9,1761.8,5.67601]
[1743685475776,0.05,1761.9,1761.8,5.73276673]
[1743685475955,0.05,1761.9,1761.8,6.81690804]
[1743685476156,0.05,1761.9,1761.8,5.67601]
[1743685477586,0.05,1761.9,1761.8,7.28731]
[1743685479299,0.05,1761.9,1761.8,5.73275785]
[1743685479679,0.05,1761.9,1761.7,5.6762]
[1743685481691,0.05,1761.9,1761.8,6.811231]
[1743685481892,0.05,1761.9,1761.8,6.86797297]
[1743685482192,9.2412,1762.8,1762.4,5.67407]
[1743685482488,9.2412,1762.8,1762.4,5.67391]
[1743685482694,0.05,1762.9,1762.5,5.73031024]
[1743685482892,0.09254007,1762.9,1762.5,5.73031024]
[1743685483188,0.05,1762.9,1762.5,1.19716426]
[1743685483404,0.05,1762.9,1762.7,5.67297]
[1743685486896,5.67434,1762.4,1761.9,5.67564]
[1743685487191,5.67452,1762.3,1761.9,5.67568]
[1743685487396,5.67409,1762.4,1762.0,5.67535]
[1743685487572,11.39088007,1762.4,1762.0,5.67535]
[1743685487761,5.67581,1761.9,1761.4,5.67711]
[1743685487963,11.39290007,1762.1,1761.6,5.67665]
[1743685488192,5.67559,1762.0,1761.5,6.244561]
[1743685488407,3.0,1762.1,1761.5,0.567711]
[1743685488692,8.71760007,1762.1,1761.6,0.05676191]